[Event "Mitropa Cup Open 2022"]
[Site "Corte"]
[Date "2022.05.06"]
[Round "7.8"]
[White "Haring, Filip"]
[Black "Deuer, Marius"]
[Result "1/2-1/2"]
[ECO "B10"]
[WhiteElo "2434"]
[BlackElo "2359"]
[Annotator "TA"]
[PlyCount "75"]
[EventDate "2022.04.30"]
[EventType "team-tourn"]
[EventCountry "FRA"]
[SourceTitle "playchess.com"]
[Source "ChessBase"]
[SourceQuality "1"]
[WhiteTeam "Slovakia"]
[BlackTeam "Germany"]
[WhiteTeamCountry "SVK"]
[BlackTeamCountry "GER"]
[TimeControl "40/5400+30:1800+30"]

{[%evp 9,75,0,0,2,0,-22,17,14,36,31,48,59,50,27,35,33,41,14,99,0,0,-8,36,44,38,-21,77,72,87,-15,-25,-60,-58,-73,6,0,4,3,0,0,18,0,0,0,0,0,8,0,0,0,0,0,0,0,0,-58,0,0,0,0,0,0,0,0,0,-4,0,0]} 1. e4 {[%emt 0:00:05]} c6 {[%emt 0:00:09]} 2. Nf3 {[%emt 0:03:30]} d5 {[%emt 0:00:13]} 3. d3 {[%emt 0:00:19]} dxe4 {[%emt 0:02:31]} 4. dxe4 {[%emt 0:00:07]} Qxd1+ {[%emt 0:00:07]} 5. Kxd1 {[%emt 0:00:06]} Nf6 {[%emt 0:00:06]} 6. Nbd2 {[%emt 0:01:01] B10: Caro-Kann: 2 d3 and 2 c4.} Nbd7 {[%emt 0:00:38]} 7. a4 {[%emt 0:02:29] [#]} a5 $146 {[%emt 0:07:36]} ({Predecessor:} 7... Nc5 8. Bd3 g6 9. b4 Nxd3 10. cxd3 a5 11. bxa5 Rxa5 12. Bb2 Bg7 13. Bc3 Ra6 {0-1 (48) Pichot,A (2630)-Keymer,V (2591) Biel 2021}) 8. Ne1 {[%emt 0:16:58]} Ng4 {[%emt 0:08:14]} 9. Nd3 {[%emt 0:00:09]} Nde5 {[%emt 0:00:39] Inhibits Nc4.} 10. Nxe5 {[%emt 0:01:20]} Nxe5 {[%emt 0:01:04]} (10... Nxf2+ 11. Ke1 Nxh1 12. Bc4) 11. b3 {[%emt 0:03:19]} e6 {[%emt 0:14:27]} 12. Be2 {[%emt 0:04:22] Inhibits Ng4.} Bc5 {[%emt 0:07:31]} 13. Bb2 {[%emt 0:02:39]} (13. f4 $5 {[%cal Rf4e5]} Ng6 14. g3 $11) 13... Ng6 {[%emt 0:04:17]} (13... Nd7 $11) 14. e5 {[%emt 0:09:55]} (14. Bxg7 $16 Rg8 15. Bb2) 14... Bxf2 $11 {[%emt 0:09:44]} 15. Ne4 {[%emt 0:00:28]} Be3 {[%emt 0:02:47]} 16. Nd6+ {[%emt 0:15:57]} Ke7 {[%emt 0:03:49]} 17. Bd3 {[%emt 0:05:00]} (17. Ba3 $14 c5 18. Nc4 Rd8+ 19. Ke1) 17... Rd8 {[%emt 0:06:09]} (17... f5 $11 {keeps the balance.}) 18. Bxg6 $16 {[%emt 0:04:50] White is more active.} hxg6 {[%emt 0:01:23] [#]} 19. Ke2 {[%emt 0:05:49]} (19. Rf1 $1 $16 {[%csl Gd6][%cal Rf1f7]} f5 20. exf6+ (20. Ke2 Bc5 $11) 20... Kxd6 21. Ke2) 19... Bc5 $1 $11 {[%emt 0:02:57]} 20. Ne4 {[%emt 0:01:37]} Bd4 $36 {[%emt 0:01:01][%mdl 2048] Black is more active.} 21. Ba3+ {[%emt 0:00:41] [#]} Ke8 {[%emt 0:06:33]} (21... c5 $1 $17 {Strongly threatening ...b6.} 22. Nxc5 (22. Bxc5+ Bxc5 23. Nxc5 b6 $17) 22... Ke8) 22. Nd6+ {[%emt 0:00:45]} Rxd6 $1 {[%emt 0:00:07]} 23. Bxd6 {[%emt 0:00:05]} Bxa1 {[%emt 0:00:06]} 24. Rxa1 {[%emt 0:00:05][%mdl 4096] Endgame KRB-KRB} b6 {[%emt 0:08:52]} 25. Rd1 {[%emt 0:02:15][%mdl 1024] White has compensation.} Ba6+ {[%emt 0:01:26]} 26. Ke3 {[%emt 0:01:18]} Rc8 {[%emt 0:02:18]} 27. c4 {[%emt 0:07:40]} c5 {[%emt 0:00:18]} 28. Rf1 {[%emt 0:00:53]} Bb7 {[%emt 0:00:58]} 29. g4 {[%emt 0:07:14]} g5 {[%emt 0:03:15]} 30. Rf2 {[%emt 0:00:21]} Bc6 {[%emt 0:00:54]} 31. Rf1 {[%emt 0:02:49]} Bb7 {[%emt 0:01:58]} 32. Kf2 {[%emt 0:01:50]} ({White should play} 32. Rf2 $11) 32... f6 {[%emt 0:03:25]} (32... Be4 $15) 33. Ke3 {[%emt 0:00:06] The position is equal.} Kd7 {[%emt 0:00:53] And now ...Rh8 would win.} 34. Rd1 {[%emt 0:00:04]} Ke8 {[%emt 0:00:26] Against Bf8} 35. Rf1 {[%emt 0:00:18]} Kd7 {[%emt 0:00:23] ...Rh8 is the strong threat.} 36. Rd1 {[%emt 0:00:03]} Ke8 {[%emt 0:00:42] Inhibits Bf8.} 37. Rf1 {[%emt 0:01:42]} Kd7 {[%emt 0:00:20]} 38. Rd1 {[%emt 0:00:39] Weighted Error Value: White=0.18 (very precise) /Black=0.19 (very precise)} 1/2-1/2

[Event "Mitropa Cup Open 2022"]
[Site "Corte"]
[Date "2022.05.06"]
[Round "7.8"]
[White "Schreiner, Peter"]
[Black "Bouslimi, Nabil"]
[Result "1-0"]
[ECO "A61"]
[WhiteElo "2428"]
[BlackElo "2065"]
[Annotator "TA"]
[PlyCount "67"]
[EventDate "2022.04.30"]
[EventType "team-tourn"]
[EventCountry "FRA"]
[SourceTitle "playchess.com"]
[Source "ChessBase"]
[SourceQuality "1"]
[WhiteTeam "Austria"]
[BlackTeam "France"]
[WhiteTeamCountry "AUT"]
[BlackTeamCountry "FRA"]
[TimeControl "40/5400+30:1800+30"]

{[%evp 23,67,107,104,89,91,74,83,75,102,95,144,111,267,193,213,220,201,209,216,235,225,225,233,234,445,413,570,412,739,687,835,801,1158,1110,1439,1443,1467,1384,1190,1067,1038,1032,29991,29992,29992,29993]} 1. d4 {[%emt 0:00:03]} Nf6 {[%emt 0:00:07]} 2. Nf3 {[%emt 0:00:11]} c5 {[%emt 0:00:13]} 3. d5 {[%emt 0:00:19]} e6 {[%emt 0:00:14]} 4. c4 {[%emt 0:04:42][%cal Bc2c4,Bc4d5][%mdl 32]} exd5 {[%emt 0:00:07]} 5. cxd5 {[%emt 0:00:05]} d6 {[%emt 0:00:03]} 6. Nc3 {[%emt 0:00:06]} g6 {[%emt 0:00:06]} 7. Bg5 {[%emt 0:00:05]} Bg7 {[%emt 0:00:57]} 8. Nd2 {[%emt 0:02:35]} O-O {[%emt 0:01:56]} 9. e4 {[%emt 0:00:11]} a6 {[%emt 0:02:18]} 10. a4 {[%emt 0:00:14]} Nbd7 {[%emt 0:01:46]} 11. Be2 {[%emt 0:00:51]} Qc7 {[%emt 0:04:42]} 12. O-O {[%emt 0:02:30]} Re8 {[%emt 0:05:05]} 13. Qc2 {[%emt 0:06:15] was the old line (13.h3). A71: Modern Benoni: 6 e4 g6 7 Nf3 Bg7 8 Bg5 without Be2.} b6 {[%emt 0:05:25]} 14. f4 {[%emt 0:00:46]} Rb8 {[%emt 0:03:39][%cal Oc5c4]} 15. Kh1 {[%emt 0:02:57] White is better.} h6 {[%emt 0:07:05]} 16. Bh4 {[%emt 0:01:48][%cal Bg5h4,Bh4g3,Bg3f4][%mdl 32]} Nh7 {[%emt 0:01:03]} (16... c4 $142) 17. Bg3 {[%emt 0:09:35] [#] White is more active.} g5 $146 {[%emt 0:02:49]} (17... c4 $16) ({Predecessor:} 17... c4 18. Bxc4 b5 19. axb5 axb5 20. Bd3 b4 21. Na4 Qxc2 22. Bxc2 Ba6 23. Rfe1 Bb5 {0-1 (33) Kempinski,R (2610)-Yilmaz,M (2530) Plovdiv 2012}) 18. Nc4 {[%emt 0:06:44][%cal Oe4e5]} gxf4 {[%emt 0:03:04]} 19. Bxf4 {[%emt 0:01:37]} Ne5 {[%emt 0:00:36]} 20. Qd2 {[%emt 0:04:41]} Nxc4 {[%emt 0:13:43]} 21. Bxc4 {[%emt 0:00:11]} Ng5 {[%emt 0:00:24]} 22. Rae1 {[%emt 0:05:08] [#] aiming for e5.} ({Don't play} 22. Bxg5 $6 hxg5 23. Qxg5 Re5 $16) 22... Qd8 {[%emt 0:07:55]} 23. Qd3 {[%emt 0:06:12]} f5 $2 {[%emt 0:12:36]} (23... Kh8 24. Qg3 (24. Bxa6 Bxa6 25. Qxa6 Bxc3 $16) 24... Re5) 24. exf5 $18 {[%emt 0:08:40] Hoping for Rxe8+.} Rf8 {[%emt 0:00:56]} 25. g4 {[%emt 0:02:35]} h5 {[%emt 0:04:28]} (25... Bd4 $142 26. Bxa6 Bxa6 27. Qxa6 Ra8) 26. Qg3 {[%emt 0:05:41]} hxg4 {[%emt 0:01:14]} 27. Bxd6 {[%emt 0:01:17]} Bxf5 {[%emt 0:01:58]} 28. Be7 {[%emt 0:08:10]} Qd7 {[%emt 0:01:06]} 29. Bxg5 {[%emt 0:04:43] Threatens to win with d6+.} b5 {[%emt 0:01:18]} 30. axb5 {[%emt 0:01:22]} axb5 {[%emt 0:00:34] [#]} 31. Re7 $1 {[%emt 0:00:37]} bxc4 {[%emt 0:06:06]} 32. Rxd7 {[%emt 0:00:16]} Be4+ {[%emt 0:01:37]} 33. Nxe4 {[%emt 0:01:38]} Rxf1+ {[%emt 0:00:08]} 34. Kg2 {[%emt 0:00:09] Black got outplayed after the opening.  Weighted Error Value: White=0.25 (precise) /Black=0.87} 1-0

[Event "Mitropa Cup Open 2022"]
[Site "Corte"]
[Date "2022.05.07"]
[Round "8.1"]
[White "Moroni, Luca Jr"]
[Black "Massoni, Michael"]
[Result "1-0"]
[ECO "D72"]
[WhiteElo "2581"]
[BlackElo "2339"]
[Annotator "TA"]
[PlyCount "163"]
[EventDate "2022.04.30"]
[EventType "team-tourn"]
[EventCountry "FRA"]
[SourceTitle "playchess.com"]
[Source "ChessBase"]
[SourceQuality "1"]
[WhiteTeam "Italy"]
[BlackTeam "France"]
[WhiteTeamCountry "ITA"]
[BlackTeamCountry "FRA"]
[TimeControl "40/5400+30:1800+30"]

{[%evp 18,163,19,10,28,34,29,41,30,37,59,67,77,44,54,0,70,50,78,0,0,0,0,-43,-43,-165,-151,-156,-104,-170,-90,-101,-108,-108,-98,-108,-108,-100,-101,-108,-94,-87,-85,-95,-86,-94,-35,-97,0,-68,0,0,0,-46,0,0,0,0,16,0,47,0,3,-42,0,0,0,0,62,50,74,49,66,60,118,119,264,264,264,234,283,268,242,0,0,0,0,0,0,0,0,0,0,0,40,0,40,0,7,0,148,8,40,40,40,40,40,40,40,14,14,14,34,0,0,0,0,0,0,0,0,0,0,0,73,73,73,0,73,73,73,0,0,0,0,0,0,0,0,0,0,0,12821,706,456,0,12820,11594]} 1. d4 {[%emt 0:00:01]} Nf6 {[%emt 0:00:10]} 2. c4 {[%emt 0:00:03]} g6 {[%emt 0:00:15]} 3. g3 {[%emt 0:00:02]} Bg7 {[%emt 0:01:15]} 4. Bg2 {[%emt 0:00:04]} d5 {[%emt 0:00:06]} 5. cxd5 {[%emt 0:00:03]} Nxd5 {[%emt 0:00:07]} 6. e4 {[%emt 0:00:02]} Nb6 {[%emt 0:01:05]} 7. Ne2 {[%emt 0:00:05][%cal Bg1e2,Be2c3,Bc3e4,Be4c5][%mdl 32]} c5 {[%emt 0:05:18]} 8. d5 {[%emt 0:00:16]} O-O {[%emt 0:00:29]} 9. O-O {[%emt 0:00:03]} e6 {[%emt 0:06:21]} 10. Nec3 {[%emt 0:00:05]} exd5 {[%emt 0:01:21] D72: Fianchetto Grünfeld: 5 cxd5 Nxd5 6 e4 Nb6 (without Nf3).} 11. exd5 {[%emt 0:00:02]} N8d7 {[%emt 0:01:41]} 12. Ne4 {[%emt 0:12:38]} Nf6 {[%emt 0:11:03] White is slightly better.} 13. Nbc3 {[%emt 0:06:29] [#]} Bf5 $146 {[%emt 0:16:04]} ({Predecessor:} 13... Nxe4 14. Nxe4 Nd7 15. Bg5 Qb6 16. Rb1 Nf6 17. d6 Nxe4 18. Bxe4 Be6 19. b3 f6 {1-0 (47) Langrock,H (2367)-Walter,F (2236) Germany 2018}) 14. Nxc5 {[%emt 0:04:30]} Qc8 {[%emt 0:01:08]} 15. Be3 {[%emt 0:02:44]} Bh3 $1 {[%emt 0:03:36]} 16. Qf3 {[%emt 0:08:03]} (16. Qb3 $14) 16... Rd8 {[%emt 0:05:04]} (16... Bxg2 $11 17. Kxg2 Ng4) 17. Rfd1 $14 {[%emt 0:25:20]} Nc4 {[%emt 0:17:01]} 18. Bg5 {[%emt 0:11:15]} Bg4 $11 {[%emt 0:03:46]} 19. Qf4 {[%emt 0:00:25][%cal Od1d4] Threatens to win with Rd4!} Bxd1 {[%emt 0:02:13]} 20. Bxf6 {[%emt 0:02:33]} (20. Qxc4 $5 {[%cal Ra1d1]} Bg4 21. d6 $11) 20... Bxf6 {[%emt 0:03:17]} (20... Nxb2 $2 21. Bxg7 Kxg7 22. Qd4+ Kh6 23. Nxd1 Nxd1 24. Rxd1 $18) 21. Qxf6 {[%emt 0:03:13]} (21. Qxc4 $15 b6 22. d6 Qxc5 23. Qxc5 bxc5 24. Bxa8) 21... Qxc5 $19 {[%emt 0:01:43]} 22. Rxd1 {[%emt 0:04:44]} Qb6 {[%emt 0:00:54]} (22... Nxb2 $142 23. Rb1 Nc4 24. Rxb7 Nd6) 23. Qf4 {[%emt 0:05:41] [#]} (23. Qe7 $17) 23... Nd6 {[%emt 0:01:06]} ({And not} 23... Nxb2 24. Rb1 $11) (23... Qxb2 $1 $19 24. Qxc4 Rac8) 24. Rd2 {[%emt 0:00:39]} Re8 {[%emt 0:02:54]} 25. h4 {[%emt 0:00:34]} h5 {[%emt 0:01:05]} 26. Bf3 {[%emt 0:00:07]} Re1+ {[%emt 0:02:59]} 27. Kg2 {[%emt 0:00:39]} Rae8 {[%emt 0:01:27]} 28. Ne2 {[%emt 0:02:27]} Qa6 {[%emt 0:00:35]} 29. Rc2 {[%emt 0:01:45] Inhibits Nc4.} Nf5 {[%emt 0:01:24]} 30. Qd2 {[%emt 0:00:01]} Ra1 {[%emt 0:00:51]} 31. a3 {[%emt 0:00:46]} Qd6 {[%emt 0:02:56]} ({Black should play} 31... Qf6 $17 32. Qf4 a6) 32. Rc4 {[%emt 0:02:27]} (32. Nd4 $1 $15) 32... Kh7 {[%emt 0:01:04]} (32... Qd7 $17) 33. Qc3 {[%emt 0:01:20]} (33. Ra4 $11) 33... Rb1 {[%emt 0:03:22]} (33... Qa6 $15 34. Nf4 Nd6) 34. Qc2 {[%emt 0:01:47] Really sharp!} Re1 {[%emt 0:00:19][%cal Oe8e3]} 35. Qd2 {[%emt 0:00:05] [#] Against Re3} (35. Rf4 $11) 35... Ra1 {[%emt 0:01:32]} (35... Qa6 $1 $15 36. Qxe1 (36. b3 Ra1) 36... Qxc4) 36. Rf4 {[%emt 0:01:07]} Qe5 {[%emt 0:01:13]} 37. Re4 {[%emt 0:01:56]} Qb8 {[%emt 0:00:13]} 38. Nc3 {[%emt 0:01:37]} Nd6 {[%emt 0:00:59]} (38... Rc8 $11 {might be stronger.}) 39. Rf4 {[%emt 0:01:05]} (39. Qf4 $1 $14 Rf8 40. Re5) 39... Qc7 {[%emt 0:01:15]} 40. Qd4 {[%emt 0:03:08]} (40. Bxh5 $5 {[%cal Rh5d1]} Ree1 41. Bd1 $11) 40... f5 {[%emt 0:00:41]} 41. Qxa7 {[%emt 0:03:30]} Qe7 {[%emt 0:05:04] aiming for ...Qe1.} 42. Qb6 {[%emt 0:09:08]} Rc1 {[%emt 0:06:56]} (42... Qe1 $11 43. Kh3 Qe5) 43. Ne2 $1 $14 {[%emt 0:06:15][%cal Bc3e2,Be2f4,Bf4e6][%mdl 32]} Rc2 {[%emt 0:02:49]} 44. Rb4 {[%emt 0:02:50]} Rd2 {[%emt 0:09:27]} 45. Nf4 {[%emt 0:00:54]} (45. Rd4 $5 {[%cal Rd4d2]} Rc2 46. Nf4 $14) 45... Rc8 {[%emt 0:00:38]} ({Black should try} 45... Qe3 $14 46. Qxe3 Rxe3) 46. Rd4 $1 $16 {[%emt 0:02:19]} Rcc2 {[%emt 0:04:18]} (46... Qe3 $2 47. Ne2 $1 {[%mdl 512]} Rxe2 48. Bxe2 Qxe2 49. Qxd6 $18) (46... Rdc2 $16) 47. Rxd2 $18 {[%emt 0:00:43]} Rxd2 {[%emt 0:00:05]} 48. Ne6 {[%emt 0:04:36]} Ne4 {[%emt 0:01:28]} 49. Bxe4 {[%emt 0:01:11]} fxe4 {[%emt 0:00:05][%mdl 4096] Endgame KQR-KQN} 50. Qe3 $2 {[%emt 0:01:35]} ({Only move:} 50. Qb3 $18 {Ng5+ is the strong threat.} Rd3 51. Qc4) 50... Rxd5 $11 {[%emt 0:00:35]} 51. Qxe4 {[%emt 0:00:01]} Rd7 $1 {[%emt 0:01:18]} 52. Qe5 {[%emt 0:01:03]} Kg8 $1 {[%emt 0:00:48]} 53. Qb8+ {[%emt 0:00:05]} Kf7 {[%emt 0:00:30]} 54. Ng5+ {[%emt 0:00:02]} Kg7 {[%emt 0:00:05]} 55. Qc8 {[%emt 0:00:05]} b6 {[%emt 0:01:17]} 56. b4 {[%emt 0:01:07]} Ra7 {[%emt 0:02:14]} 57. Qc1 {[%emt 0:01:15]} Qe5 {[%emt 0:00:23]} 58. Qd1 {[%emt 0:00:52]} Qe7 {[%emt 0:00:35]} (58... b5 $11) 59. Qd3 {[%emt 0:00:13]} (59. Qd4+ $1 $16 Qf6 60. Ne6+ Kf7 61. Qxb6 $1) 59... Qf6 {[%emt 0:00:53]} 60. Qd5 {[%emt 0:00:41]} Re7 {[%emt 0:00:27]} 61. a4 {[%emt 0:00:24]} Qe5 {[%emt 0:00:33]} 62. Qc4 {[%emt 0:01:02]} Rd7 {[%emt 0:00:14]} 63. Ne6+ {[%emt 0:00:33]} Kf6 {[%emt 0:00:14]} 64. Nf4 {[%emt 0:00:08]} Kg7 {[%emt 0:00:30]} 65. a5 {[%emt 0:00:51]} bxa5 {[%emt 0:00:38]} 66. bxa5 {[%emt 0:00:01]} Ra7 {[%emt 0:00:12]} 67. Qc6 {[%emt 0:00:36]} Qf6 {[%emt 0:00:26]} 68. Ne6+ {[%emt 0:00:22]} Kh6 {[%emt 0:00:35]} 69. Qc1+ {[%emt 0:00:39]} Kh7 {[%emt 0:00:06]} 70. Qc5 {[%emt 0:00:07]} Ra6 {[%emt 0:00:38]} (70... Re7 $11 {remains equal.} 71. Nf4 Rf7) 71. Ng5+ {[%emt 0:00:47]} Kh6 {[%emt 0:00:08]} 72. Qb4 {[%emt 0:00:14]} (72. Ne4 $16 Qd8 73. Qe3+ Kg7 74. Qc3+ Kh6 75. Ng5) 72... Qc6+ {[%emt 0:00:29]} (72... Ra7 $11) 73. Kg1 {[%emt 0:00:09][%cal Rb4f8] White is more active.} Qf6 {[%emt 0:00:34] [#] Against Qf8+} 74. Qb7 {[%emt 0:00:09] Against Ra7} (74. Qa3 $1 $16) 74... Ra7 $1 {[%emt 0:00:35]} 75. Qb4 {[%emt 0:01:12]} Kg7 {[%emt 0:00:09]} 76. Qc5 {[%emt 0:00:31]} Qa1+ {[%emt 0:01:10]} 77. Kh2 {[%emt 0:00:25]} Qxa5 {[%emt 0:00:16]} 78. Qd4+ {[%emt 0:00:11]} Kg8 {[%emt 0:00:07]} 79. Qf6 {[%emt 0:00:27] Strongly threatening Ne6.} Rg7 $2 {[%emt 0:01:59][%mdl 8192]} ({Resist} 79... Qf5 80. Qd8+ Qf8 81. Qb6 $16) (79... Qa6 $11 80. Ne6 Kh7) 80. Qe6+ {[%emt 0:00:41]} (80. Ne6 $142 Qa7 81. Nxg7 Qxg7 82. Qxg7+ Kxg7 83. g4 Kh8 84. Kg3 hxg4 85. Kxg4) 80... Kf8 $18 {[%emt 0:00:18]} 81. Qf6+ {[%emt 0:01:19]} (81. Qc8+ $142 Ke7 82. Qb7+ Kf6 83. Ne4+ Kf5 84. Qxg7 Kxe4 85. Qxg6+ Kd4 86. g4 Qc7+ 87. Kh3) 81... Kg8 {[%emt 0:00:06]} 82. Ne6 {[%emt 0:01:33] What a fight!  Weighted Error Value: White=0.27 (precise) /Black=0.29 (precise)} 1-0

[Event "Mitropa Cup Open 2022"]
[Site "Corte"]
[Date "2022.05.07"]
[Round "8.1"]
[White "Baenziger, Fabian"]
[Black "Koellner, Ruben Gideon"]
[Result "1/2-1/2"]
[ECO "D37"]
[WhiteElo "2430"]
[BlackElo "2440"]
[Annotator "TA"]
[PlyCount "80"]
[EventDate "2022.04.30"]
[EventType "team-tourn"]
[EventCountry "FRA"]
[SourceTitle "playchess.com"]
[Source "ChessBase"]
[SourceQuality "1"]
[WhiteTeam "Switzerland"]
[BlackTeam "Germany"]
[WhiteTeamCountry "SUI"]
[BlackTeamCountry "GER"]
[TimeControl "40/5400+30:1800+30"]

{[%evp 28,80,0,0,0,0,0,0,0,0,0,0,0,0,0,0,0,0,0,0,0,0,0,0,0,0,0,0,0,0,0,0,0,0,0,0,0,0,0,0,0,0,0,0,0,0,0,0,0,0,0,0,0,0,0]} 1. d4 {[%emt 0:00:04]} d5 {[%emt 0:00:06]} 2. c4 {[%emt 0:00:12]} e6 {[%emt 0:00:05]} 3. Nf3 {[%emt 0:00:18]} Nf6 {[%emt 0:00:07]} 4. Nc3 {[%emt 0:00:39]} Be7 {[%emt 0:00:41]} 5. Bg5 {[%emt 0:00:44]} h6 {[%emt 0:01:55]} 6. Bh4 {[%emt 0:00:09]} Ne4 {[%emt 0:10:19]} 7. Bxe7 {[%emt 0:02:24]} Qxe7 {[%emt 0:00:07]} 8. Rc1 {[%emt 0:03:08]} c6 {[%emt 0:06:50]} 9. e3 {[%emt 0:02:48]} Nd7 {[%emt 0:01:08]} 10. Bd3 {[%emt 0:06:04]} Nxc3 {[%emt 0:07:33]} 11. Rxc3 {[%emt 0:01:21]} O-O {[%emt 0:07:25]} 12. O-O {[%emt 0:04:14]} dxc4 {[%emt 0:04:43]} 13. Rxc4 {[%emt 0:06:07]} e5 {[%emt 0:06:51]} 14. dxe5 {[%emt 0:05:40]} Nxe5 {[%emt 0:00:13]} 15. Re4 {[%emt 0:00:07] The position is equal.} Nxf3+ {[%emt 0:00:09] D56: Queen's Gambit Declined: Lasker Defence.} 16. Qxf3 {[%emt 0:00:04]} Be6 {[%emt 0:05:34]} 17. Bc4 {[%emt 0:05:43]} Rad8 {[%emt 0:00:33]} 18. Bxe6 {[%emt 0:10:49]} fxe6 {[%emt 0:00:07]} 19. Qg4 {[%emt 0:00:02]} Rf6 {[%emt 0:00:25]} 20. Rd4 {[%emt 0:10:42] Prevents Rd2.} Rd5 {[%emt 0:05:50]} 21. Rfd1 {[%emt 0:01:15] [#]} Qc5 $146 {[%emt 0:08:48]} ({Predecessor:} 21... Rf8 22. e4 Qf6 23. R4d2 Rd4 24. f3 c5 25. Rxd4 cxd4 26. e5 Qxe5 27. Qxd4 Qxd4+ 28. Rxd4 {0-1 (60) Gomez Esteban,J (2490)-Korneev,O (2565) Elgoibar 1997}) 22. Rxd5 {[%emt 0:11:52]} cxd5 $11 {[%emt 0:00:44][%mdl 4096] Endgame KQR-KQR} 23. Qe2 {[%emt 0:00:28] Prevents Qc2.} Rf7 {[%emt 0:02:41]} 24. g3 {[%emt 0:00:45]} Rc7 {[%emt 0:02:08]} 25. Qg4 {[%emt 0:03:29]} Rc6 {[%emt 0:04:20]} 26. e4 {[%emt 0:18:39]} Qb4 {[%emt 0:05:53][%csl LRb2,LRe4]} 27. b3 {[%emt 0:01:00]} a5 {[%emt 0:05:29]} 28. h3 {[%emt 0:04:34]} Qxe4 {[%emt 0:00:22]} 29. Qxe4 {[%emt 0:00:01]} dxe4 {[%emt 0:00:07] KR-KR} 30. Re1 {[%emt 0:00:36]} Rc2 {[%emt 0:05:58]} 31. a4 {[%emt 0:00:53]} Rc3 {[%emt 0:01:25]} 32. Rxe4 {[%emt 0:00:03]} Rxb3 {[%emt 0:00:13] [#] aiming for ...Rb4.} 33. Re5 {[%emt 0:00:21]} b6 {[%emt 0:01:25] And now ...Kf7 would win.} 34. Rxe6 {[%emt 0:00:02]} Kf7 {[%emt 0:00:09]} 35. Rc6 {[%emt 0:00:15]} h5 {[%emt 0:03:44]} 36. h4 {[%emt 0:00:10]} Rb4 {[%emt 0:00:21]} 37. Kg2 {[%emt 0:00:21]} Ke7 {[%emt 0:01:48]} 38. Rg6 {[%emt 0:00:14]} Kf7 {[%emt 0:00:15]} 39. Rc6 {[%emt 0:00:05]} Ke7 {[%emt 0:00:10]} 40. Rg6 {[%emt 0:00:04]} Kf7 {[%emt 0:00:40] An even fight not without its subleties.  Weighted Error Value: White=0.00 (flawless) /Black=0.00 (flawless)} 1/2-1/2